[Event "ESP chT Honor Division 2019"]
[Site "Melilla"]
[Date "2019.10.02"]
[Round "3.23"]
[White "Moreno Tejera, Emilio"]
[Black "Martin Duque, Jesus"]
[Result "1-0"]
[ECO "C70"]
[WhiteElo "2427"]
[BlackElo "2445"]
[Annotator "NA"]
[PlyCount "73"]
[EventDate "2019.09.30"]
[EventType "team-tourn"]
[EventCountry "ESP"]
[SourceTitle "playchess.com"]
[Source "ChessBase"]
[SourceQuality "1"]
[TimeControl "40/5400+30:1800+30"]

1. e4 {[%emt 0:00:00]} e5 {[%emt 0:00:00]} 2. Nf3 {[%emt 0:00:28]} Nc6 {[%emt 0:00:00]} 3. Bb5 {[%emt 0:00:35]} a6 {[%emt 0:00:00]} 4. Ba4 {[%emt 0:00:06]} g6 5. O-O {[%emt 0:08:08]} Bg7 {[%emt 0:00:00]} 6. c3 {[%emt 0:00:48]} d6 {[%emt 0:00:11]} 7. d4 {[%emt 0:08:25]} Bd7 {[%emt 0:00:07]} 8. d5 {[%emt 0:02:46]} Nce7 {[%emt 0:00:02]} 9. Bxd7+ {[%emt 0:00:10]} Qxd7 {[%emt 0:00:02]} 10. c4 {[%emt 0:00:09]} h6 {[%emt 0:00:07]} 11. Nc3 {[%emt 0:01:07]} f5 12. Ne1 {[%emt 0:12:56]} Nf6 {[%emt 0:02:05]} 13. f3 {[%emt 0:03:12]} O-O {[%emt 0:00:17]} 14. Nd3 {[%emt 0:00:59]} c6 15. Be3 cxd5 {[%emt 0:24:56]} 16. cxd5 {[%emt 0:16:30]} fxe4 {[%emt 0:01:43]} 17. fxe4 {[%emt 0:00:25]} Rac8 {[%emt 0:04:43]} 18. Rc1 {[%emt 0:10:30]} b5 {[%emt 0:01:50]} 19. Nf2 {[%emt 0:03:02]} Rc4 20. b3 {[%emt 0:05:09]} Rc7 {[%emt 0:05:16]} 21. Qd2 {[%emt 0:02:19]} Ng4 {[%emt 0:16:42]} 22. Nxg4 {[%emt 0:04:16]} Qxg4 {[%emt 0:03:48]} 23. Rxf8+ {[%emt 0:08:21]} Bxf8 {[%emt 0:00:02]} 24. h3 {[%emt 0:00:47]} Qc8 {[%emt 0:01:43]} 25. Bb6 {[%emt 0:00:24]} Rb7 {[%emt 0:00:36]} 26. Nxb5 {[%emt 0:01:59]} Qb8 {[%emt 0:07:28]} 27. Bc7 {[%emt 0:00:52]} Qa8 {[%emt 0:00:28]} 28. Nxd6 {[%emt 0:00:53]} Qa7+ {[%emt 0:00:05]} 29. Qf2 {[%emt 0:00:11]} Qxf2+ {[%emt 0:10:43]} 30. Kxf2 {[%emt 0:00:06]} Ra7 {[%emt 0:00:37]} 31. Ke2 {[%emt 0:01:53]} g5 {[%emt 0:00:15]} 32. Bb6 {[%emt 0:01:52]} Rd7 {[%emt 0:00:02]} 33. Ne8 {[%emt 0:01:09]} Kf7 {[%emt 0:00:10]} 34. Nc7 {[%emt 0:00:18]} Ng6 {[%emt 0:00:21]} 35. g3 {[%emt 0:00:22]} h5 {[%emt 0:01:15]} 36. Rf1+ {[%emt 0:00:34]} Kg7 {[%emt 0:00:07]} 37. Ne6+ {[%emt 0:00:48]} 1-0

[Event "ESP chT Honor Division 2019"]
[Site "Melilla"]
[Date "2019.10.02"]
[Round "3.24"]
[White "Di Benedetto, Desiree"]
[Black "Bivol, Alina"]
[Result "0-1"]
[ECO "A48"]
[WhiteElo "2235"]
[BlackElo "2371"]
[Annotator "NA"]
[PlyCount "126"]
[EventDate "2019.09.30"]
[EventType "team-tourn"]
[EventCountry "ESP"]
[SourceTitle "playchess.com"]
[Source "ChessBase"]
[SourceQuality "1"]
[TimeControl "40/5400+30:1800+30"]

1. d4 {[%emt 0:00:36]} Nf6 {[%emt 0:00:00]} 2. Nf3 {[%emt 0:00:08]} g6 {[%emt 0:00:25]} 3. Nc3 {[%emt 0:00:18]} d5 {[%emt 0:01:26]} 4. Bf4 {[%emt 0:00:19]} Bg7 {[%emt 0:01:13]} 5. Nb5 {[%emt 0:01:25]} Na6 {[%emt 0:00:15]} 6. e3 {[%emt 0:00:39]} O-O {[%emt 0:02:47]} 7. h3 {[%emt 0:00:14]} c6 {[%emt 0:00:37]} 8. Nc3 {[%emt 0:00:13]} Qa5 {[%emt 0:04:11]} 9. Qd2 {[%emt 0:02:41]} b5 {[%emt 0:09:25]} 10. Bd3 {[%emt 0:05:27]} b4 {[%emt 0:01:07]} 11. Ne2 {[%emt 0:02:42]} c5 {[%emt 0:00:15]} 12. c3 {[%emt 0:10:09]} c4 13. Bb1 bxc3 {[%emt 0:14:34]} 14. Nxc3 {[%emt 0:08:18]} Bb7 {[%emt 0:05:25]} 15. O-O {[%emt 0:01:16]} Rac8 {[%emt 0:00:33]} 16. Qe2 {[%emt 0:06:06]} Rfd8 {[%emt 0:04:32]} 17. Rd1 {[%emt 0:02:48]} Nb4 {[%emt 0:00:30]} 18. Ne5 Nc6 {[%emt 0:01:11]} 19. Nxc6 {[%emt 0:11:50]} Bxc6 20. Be5 {[%emt 0:01:51]} Bf8 {[%emt 0:01:28]} 21. Bc2 {[%emt 0:10:44]} Nd7 {[%emt 0:02:10]} 22. Bf4 {[%emt 0:03:04]} Bg7 {[%emt 0:01:28]} 23. e4 {[%emt 0:02:01]} dxe4 {[%emt 0:00:17]} 24. Bxe4 Bxe4 25. Qxe4 {[%emt 0:03:09]} e6 {[%emt 0:02:34]} 26. Qe2 {[%emt 0:04:33]} Qf5 {[%emt 0:05:38]} 27. Be3 {[%emt 0:02:41]} Nb6 {[%emt 0:00:47]} 28. Rac1 {[%emt 0:01:19]} Nd5 {[%emt 0:02:01]} 29. Nxd5 {[%emt 0:06:56]} exd5 {[%emt 0:00:34]} 30. b3 {[%emt 0:00:35]} Qe6 {[%emt 0:02:11]} 31. Qd2 {[%emt 0:03:56]} Qa6 32. Bf4 h5 {[%emt 0:03:29]} 33. Re1 {[%emt 0:05:27]} cxb3 {[%emt 0:03:04]} 34. axb3 {[%emt 0:00:24]} Qb6 {[%emt 0:00:04]} 35. Rxc8 {[%emt 0:02:25]} Rxc8 {[%emt 0:00:02]} 36. Be5 {[%emt 0:00:48]} Qxb3 {[%emt 0:01:02]} 37. Bxg7 {[%emt 0:00:43]} Kxg7 {[%emt 0:00:02]} 38. Qf4 {[%emt 0:00:31]} Qb8 {[%emt 0:00:57]} 39. Qg5 {[%emt 0:02:04]} Qd6 {[%emt 0:00:12]} 40. Ra1 {[%emt 0:01:02]} Rb8 {[%emt 0:03:34]} 41. g3 Rb7 {[%emt 0:00:42]} 42. Ra5 {[%emt 0:06:15]} Rd7 {[%emt 0:00:05]} 43. h4 {[%emt 0:01:25]} Qe6 {[%emt 0:04:37]} 44. Qd2 {[%emt 0:02:05]} Qe4 {[%emt 0:01:19]} 45. Kh2 {[%emt 0:01:59]} Re7 {[%emt 0:02:13]} 46. Ra1 {[%emt 0:07:34]} Rc7 {[%emt 0:01:28]} 47. Kg1 {[%emt 0:01:29]} Re7 {[%emt 0:01:47]} 48. Qc3 {[%emt 0:00:53]} Rb7 {[%emt 0:02:32]} 49. Re1 {[%emt 0:03:24]} Rb1 {[%emt 0:02:15]} 50. Rxb1 {[%emt 0:00:05]} Qxb1+ {[%emt 0:00:03]} 51. Kh2 {[%emt 0:00:11]} Qe4 {[%emt 0:01:24]} 52. f3 {[%emt 0:00:45]} Qe2+ {[%emt 0:00:08]} 53. Kg1 {[%emt 0:00:36]} a6 {[%emt 0:01:00]} 54. f4 {[%emt 0:00:23]} Qb5 {[%emt 0:03:53]} 55. Qe1 {[%emt 0:01:55]} a5 {[%emt 0:00:01]} 56. Qe5+ {[%emt 0:03:46]} Kg8 {[%emt 0:05:57]} 57. Kh2 {[%emt 0:00:22]} Qd7 {[%emt 0:00:22]} 58. Qb8+ {[%emt 0:00:36]} Kg7 {[%emt 0:00:49]} 59. Qa8 Qb5 60. Qa7 {[%emt 0:03:15]} Qe2+ {[%emt 0:02:21]} 61. Kg1 {[%emt 0:01:41]} Qf3 {[%emt 0:00:16]} 62. Kh2 Qf2+ {[%emt 0:00:06]} 63. Kh3 {[%emt 0:00:25]} Qg1 {[%emt 0:00:07]} 0-1

[Event "ESP chT Honor Division 2019"]
[Site "Melilla"]
[Date "2019.10.03"]
[Round "4.2"]
[White "Vazquez Igarza, Renier"]
[Black "Idani, Pouya"]
[Result "1/2-1/2"]
[ECO "A04"]
[WhiteElo "2557"]
[BlackElo "2568"]
[Annotator "ChessBase"]
[PlyCount "123"]
[EventDate "2019.09.30"]
[EventType "team-tourn"]
[EventCountry "ESP"]
[SourceTitle "playchess.com"]
[Source "ChessBase"]
[SourceQuality "1"]
[TimeControl "40/5400+30:1800+30"]

1. Nf3 {[%emt 0:00:00]} f5 {[%emt 0:00:00]} 2. c4 {[%emt 0:01:47]} Nf6 {[%emt 0:00:34]} 3. g3 {[%emt 0:00:19]} g6 {[%emt 0:00:06]} 4. b4 {[%emt 0:00:52]} Bg7 {[%emt 0:01:22]} 5. Bb2 {[%emt 0:00:26]} O-O {[%emt 0:00:38]} 6. Bg2 {[%emt 0:00:05]} c6 {[%emt 0:04:51]} 7. O-O {[%emt 0:00:43]} Na6 {[%emt 0:05:16]} 8. Qb3 {[%emt 0:00:31]} Kh8 {[%emt 0:02:49]} 9. d3 {[%emt 0:10:37]} d6 {[%emt 0:01:32]} 10. Nbd2 {[%emt 0:01:34]} e5 {[%emt 0:03:27]} 11. a4 {[%emt 0:09:07]} Qe7 {[%emt 0:06:33]} 12. c5 {[%emt 0:10:51]} dxc5 {[%emt 0:06:26]} 13. b5 {[%emt 0:00:13]} Be6 {[%emt 0:00:57]} 14. Nc4 {[%emt 0:01:49]} e4 {[%emt 0:04:44]} 15. bxa6 {[%emt 0:07:15]} b5 {[%emt 0:02:12]} 16. axb5 {[%emt 0:07:56]} cxb5 {[%emt 0:00:27]} 17. Qxb5 {[%emt 0:22:24]} Rab8 {[%emt 0:00:46]} 18. Qa5 {[%emt 0:00:49]} exf3 {[%emt 0:03:53]} 19. Bxf3 {[%emt 0:00:11]} Bxc4 {[%emt 0:00:06]} 20. Bxf6 {[%emt 0:00:05]} Bxf6 {[%emt 0:00:06]} 21. dxc4 {[%emt 0:00:05]} Bxa1 {[%emt 0:00:09]} 22. Qxa1+ {[%emt 0:00:04]} Qf6 {[%emt 0:02:14]} 23. Qa5 {[%emt 0:02:32]} Qd6 {[%emt 0:08:31]} 24. Qc3+ {[%emt 0:05:06]} Rf6 {[%emt 0:01:07]} 25. Kg2 {[%emt 0:00:59]} Kg7 {[%emt 0:03:01]} 26. Ra1 {[%emt 0:00:41]} Rb6 {[%emt 0:03:26]} 27. Bb7 {[%emt 0:01:35]} h5 {[%emt 0:00:51]} 28. Ra2 {[%emt 0:03:59]} Qe7 {[%emt 0:02:39]} 29. Bd5 {[%emt 0:00:44]} Kh7 {[%emt 0:00:17]} 30. Bb7 {[%emt 0:01:46]} Rfd6 {[%emt 0:00:38]} 31. Ra1 {[%emt 0:03:41]} Re6 {[%emt 0:04:58]} 32. e3 {[%emt 0:02:04]} Red6 {[%emt 0:00:07]} 33. h4 {[%emt 0:01:30]} Qg7 {[%emt 0:02:42]} 34. Qa5 {[%emt 0:00:41]} Rd3 {[%emt 0:05:28]} 35. Rf1 {[%emt 0:01:40]} Qe7 {[%emt 0:00:58]} 36. Qa1 {[%emt 0:01:19]} Rd2 {[%emt 0:00:39]} 37. Qc3 {[%emt 0:01:17]} Rbb2 {[%emt 0:00:16]} 38. Bd5 {[%emt 0:00:27]} Re2 {[%emt 0:03:49]} 39. Kg1 {[%emt 0:00:14]} Rec2 {[%emt 0:01:11]} 40. Qd3 {[%emt 0:00:18]} Qe5 {[%emt 0:01:35]} 41. Bg2 {[%emt 0:05:21]} Rd2 {[%emt 0:00:34]} 42. Qa3 {[%emt 0:00:20]} Ra2 {[%emt 0:02:14]} 43. Qb3 {[%emt 0:00:34]} Rdb2 {[%emt 0:00:09]} 44. Qd3 {[%emt 0:00:56]} Rxa6 {[%emt 0:02:22]} 45. Qd7+ {[%emt 0:00:09]} Kh6 {[%emt 0:04:48]} 46. Qc8 {[%emt 0:02:11]} Ra5 {[%emt 0:06:38]} 47. Qd8 {[%emt 0:03:19]} Rb6 {[%emt 0:01:35]} 48. Bd5 {[%emt 0:03:41]} Qf6 {[%emt 0:01:03]} 49. Qc8 {[%emt 0:01:56]} Rd6 {[%emt 0:05:06]} 50. Kg2 {[%emt 0:04:38]} Qd8 {[%emt 0:01:10]} 51. Qb7 {[%emt 0:00:15]} Rd7 {[%emt 0:05:57]} 52. Qc6 {[%emt 0:00:23]} Rc7 {[%emt 0:01:06]} 53. Qe6 {[%emt 0:00:17]} Qe7 {[%emt 0:00:23]} 54. Qg8 {[%emt 0:00:07]} Qg7 {[%emt 0:02:12]} 55. Qd8 {[%emt 0:00:22]} Ra4 {[%emt 0:03:51]} 56. Re1 {[%emt 0:02:39]} Rb4 {[%emt 0:06:21]} 57. e4 {[%emt 0:01:32]} Re7 {[%emt 0:00:06]} 58. exf5 {[%emt 0:05:24]} Rxe1 {[%emt 0:00:07]} 59. f6 {[%emt 0:00:12]} Rb8 {[%emt 0:00:20]} 60. Qxb8 {[%emt 0:00:45]} Qxf6 {[%emt 0:00:06]} 61. Qxa7 {[%emt 0:00:05]} Qf8 {[%emt 0:01:54]} 62. Qa2 {[%emt 0:00:38]} 1/2-1/2

[Event "ESP chT Honor Division 2019"]
[Site "Melilla"]
[Date "2019.10.03"]
[Round "4.3"]
[White "Pap, Misa"]
[Black "Moreno Ruiz, Javier"]
[Result "1/2-1/2"]
[ECO "B22"]
[WhiteElo "2432"]
[BlackElo "2470"]
[Annotator "ChessBase"]
[PlyCount "162"]
[EventDate "2019.09.30"]
[EventType "team-tourn"]
[EventCountry "ESP"]
[SourceTitle "playchess.com"]
[Source "ChessBase"]
[SourceQuality "1"]
[TimeControl "40/5400+30:1800+30"]

1. e4 {[%emt 0:00:00]} c5 {[%emt 0:00:01]} 2. c3 {[%emt 0:00:00]} Nf6 {[%emt 0:00:23]} 3. e5 {[%emt 0:00:00]} Nd5 {[%emt 0:00:41]} 4. Nf3 {[%emt 0:00:28]} Nc6 {[%emt 0:00:14]} 5. Bc4 {[%emt 0:00:27]} Nb6 {[%emt 0:00:28]} 6. Bb3 {[%emt 0:00:06]} c4 {[%emt 0:00:10]} 7. Bc2 {[%emt 0:00:05]} d6 {[%emt 0:00:22]} 8. exd6 {[%emt 0:00:10]} Qxd6 {[%emt 0:00:05]} 9. O-O {[%emt 0:00:22]} Bg4 {[%emt 0:00:23]} 10. h3 {[%emt 0:00:08]} Bh5 {[%emt 0:00:10]} 11. Re1 {[%emt 0:00:27]} e6 {[%emt 0:03:11]} 12. b3 {[%emt 0:01:40]} Be7 {[%emt 0:00:21]} 13. Na3 {[%emt 0:03:07]} cxb3 {[%emt 0:02:44]} 14. axb3 {[%emt 0:00:13]} O-O {[%emt 0:00:24]} 15. d4 {[%emt 0:01:11]} Nd5 {[%emt 0:01:31]} 16. Bd2 {[%emt 0:18:54]} a6 {[%emt 0:01:41]} 17. Nc4 {[%emt 0:00:19]} Qc7 {[%emt 0:00:49]} 18. Ne3 {[%emt 0:03:24]} Nf6 {[%emt 0:14:06]} 19. g4 {[%emt 0:33:10]} Bg6 {[%emt 0:01:30]} 20. Bxg6 {[%emt 0:03:24]} hxg6 {[%emt 0:00:14]} 21. Nc4 {[%emt 0:03:21]} b5 {[%emt 0:06:10]} 22. Nce5 {[%emt 0:00:06]} Nxe5 {[%emt 0:00:57]} 23. Nxe5 {[%emt 0:00:12]} Nd7 {[%emt 0:06:30]} 24. Qf3 {[%emt 0:04:28]} Nxe5 {[%emt 0:01:23]} 25. Rxe5 {[%emt 0:00:28]} Qd7 {[%emt 0:04:20]} 26. Ra2 {[%emt 0:11:23]} Rfd8 {[%emt 0:08:37]} 27. Re1 {[%emt 0:02:06]} a5 {[%emt 0:22:08]} 28. Rea1 {[%emt 0:00:52]} a4 {[%emt 0:00:08]} 29. Qd1 {[%emt 0:02:58]} e5 {[%emt 0:01:54]} 30. bxa4 {[%emt 0:02:24]} exd4 {[%emt 0:01:04]} 31. cxd4 {[%emt 0:00:43]} Qxd4 {[%emt 0:01:48]} 32. Qe2 {[%emt 0:01:09]} Bf6 {[%emt 0:15:23]} 33. g5 {[%emt 0:05:03]} Qxa1+ {[%emt 0:04:19]} 34. Rxa1 {[%emt 0:00:06]} Bxa1 {[%emt 0:00:03]} 35. a5 {[%emt 0:00:21]} Bd4 {[%emt 0:00:23]} 36. Kg2 {[%emt 0:02:15]} Bc5 {[%emt 0:00:42]} 37. Bc3 {[%emt 0:01:51]} Bd4 {[%emt 0:00:39]} 38. Bb4 {[%emt 0:00:07]} Rd5 {[%emt 0:00:29]} 39. f4 {[%emt 0:00:34]} Rad8 {[%emt 0:00:57]} 40. Qe7 {[%emt 0:00:52]} R5d7 {[%emt 0:00:34]} 41. Qe2 {[%emt 0:30:53]} Bc5 {[%emt 0:31:25]} 42. Qxb5 {[%emt 0:00:00]} Bxb4 {[%emt 0:00:00]} 43. Qxb4 {[%emt 0:00:00]} Rd4 {[%emt 0:00:00]} 44. Qb6 {[%emt 0:00:00]} R4d6 {[%emt 0:00:00]} 45. Qc7 {[%emt 0:00:00]} R6d7 {[%emt 0:00:00]} 46. Qb6 {[%emt 0:00:00]} Rd3 {[%emt 0:00:00]} 47. a6 {[%emt 0:00:00]} Rc8 {[%emt 0:00:00]} 48. Qb2 {[%emt 0:00:00]} Rdc3 {[%emt 0:00:00]} 49. Qb7 {[%emt 0:00:00]} R3c7 {[%emt 0:00:00]} 50. Qb6 {[%emt 0:00:00]} Rc2+ {[%emt 0:00:00]} 51. Kf3 {[%emt 0:00:00]} R8c3+ {[%emt 0:00:00]} 52. Ke4 {[%emt 0:00:00]} Ra3 {[%emt 0:00:00]} 53. Qb8+ {[%emt 0:00:00]} Kh7 {[%emt 0:00:00]} 54. Qf8 {[%emt 0:00:00]} Re2+ {[%emt 0:01:17]} 55. Kd4 {[%emt 0:00:00]} Rxa6 {[%emt 0:00:13]} 56. Qxf7 {[%emt 0:00:00]} Ra5 {[%emt 0:00:31]} 57. h4 {[%emt 0:02:17]} Rf5 {[%emt 0:00:19]} 58. Qc7 {[%emt 0:00:06]} Rh2 {[%emt 0:01:56]} 59. Qb8 {[%emt 0:01:46]} Rxh4 {[%emt 0:00:19]} 60. Ke3 {[%emt 0:00:02]} Rh3+ {[%emt 0:00:13]} 61. Ke4 {[%emt 0:00:22]} Ra5 {[%emt 0:00:30]} 62. Qf8 {[%emt 0:00:58]} Ra4+ {[%emt 0:00:22]} 63. Kd5 {[%emt 0:00:29]} Rd3+ {[%emt 0:00:35]} 64. Ke5 {[%emt 0:00:42]} Re3+ {[%emt 0:00:50]} 65. Kd5 {[%emt 0:00:01]} Re1 {[%emt 0:01:05]} 66. Qf7 {[%emt 0:01:26]} Ra5+ {[%emt 0:00:52]} 67. Kd4 {[%emt 0:00:03]} Rf5 {[%emt 0:00:24]} 68. Qc7 {[%emt 0:00:04]} Rf8 {[%emt 0:00:21]} 69. Kd3 {[%emt 0:00:10]} Rd8+ {[%emt 0:00:34]} 70. Kc2 {[%emt 0:00:14]} Re2+ {[%emt 0:00:23]} 71. Kc3 {[%emt 0:00:09]} Re3+ {[%emt 0:01:35]} 72. Kc2 {[%emt 0:00:04]} Ree8 {[%emt 0:00:23]} 73. Qb7 {[%emt 0:01:07]} Rf8 {[%emt 0:01:13]} 74. Qh1+ {[%emt 0:00:42]} Kg8 {[%emt 0:00:05]} 75. Qe4 {[%emt 0:00:04]} Rd6 {[%emt 0:00:19]} 76. Qc4+ {[%emt 0:00:07]} Kh7 {[%emt 0:00:13]} 77. Qc5 {[%emt 0:00:22]} Rdd8 {[%emt 0:00:52]} 78. Qg1 {[%emt 0:00:24]} Rd6 {[%emt 0:01:34]} 79. Qc5 {[%emt 0:03:06]} Rdd8 {[%emt 0:00:22]} 80. Qg1 {[%emt 0:00:11]} Kg8 {[%emt 0:00:26]} 81. Qb6 {[%emt 0:00:29]} Kh7 {[%emt 0:00:59]} 1/2-1/2

[Event "ESP chT Honor Division 2019"]
[Site "Melilla"]
[Date "2019.10.03"]
[Round "4.4"]
[White "Quispe Arteaga, Gabriel"]
[Black "Suarez Real, Alberto"]
[Result "1-0"]
[ECO "A49"]
[WhiteElo "2404"]
[BlackElo "2460"]
[Annotator "ChessBase"]
[PlyCount "115"]
[EventDate "2019.09.30"]
[EventType "team-tourn"]
[EventCountry "ESP"]
[SourceTitle "playchess.com"]
[Source "ChessBase"]
[SourceQuality "1"]
[TimeControl "40/5400+30:1800+30"]

1. d4 {[%emt 0:00:00]} Nf6 {[%emt 0:00:00]} 2. Nf3 {[%emt 0:00:00]} g6 {[%emt 0:00:00]} 3. g3 {[%emt 0:00:00]} Bg7 {[%emt 0:00:26]} 4. Bg2 {[%emt 0:00:01]} O-O {[%emt 0:02:08]} 5. O-O {[%emt 0:00:04]} d5 {[%emt 0:02:30]} 6. c4 {[%emt 0:00:37]} dxc4 {[%emt 0:00:26]} 7. Na3 {[%emt 0:00:21]} Na6 {[%emt 0:00:54]} 8. Nxc4 {[%emt 0:02:20]} c5 {[%emt 0:00:28]} 9. dxc5 {[%emt 0:03:13]} Be6 {[%emt 0:02:51]} 10. Nce5 {[%emt 0:31:02]} Nxc5 {[%emt 0:01:57]} 11. Be3 {[%emt 0:05:55]} Rc8 {[%emt 0:14:27]} 12. Ng5 {[%emt 0:25:07]} Bd5 {[%emt 0:24:46]} 13. Rc1 {[%emt 0:04:27]} Bxg2 {[%emt 0:12:31]} 14. Qxd8 {[%emt 0:08:12]} Rfxd8 {[%emt 0:04:21]} 15. Kxg2 {[%emt 0:00:05]} Nd5 {[%emt 0:00:53]} 16. Bxc5 {[%emt 0:04:30]} Bxe5 {[%emt 0:00:32]} 17. Ba3 {[%emt 0:00:47]} b5 {[%emt 0:25:03]} 18. Rxc8 {[%emt 0:00:18]} Rxc8 {[%emt 0:00:02]} 19. Rd1 {[%emt 0:00:58]} e6 {[%emt 0:00:27]} 20. e4 {[%emt 0:00:37]} Nb6 {[%emt 0:01:18]} 21. b3 {[%emt 0:00:23]} Bf6 {[%emt 0:01:01]} 22. Nf3 {[%emt 0:00:05]} h6 {[%emt 0:01:38]} 23. Rc1 {[%emt 0:00:23]} a6 {[%emt 0:01:54]} 24. Rxc8+ {[%emt 0:00:48]} Nxc8 {[%emt 0:00:02]} 25. Kf1 {[%emt 0:00:13]} Be7 {[%emt 0:00:55]} 26. Bxe7 {[%emt 0:00:40]} Nxe7 {[%emt 0:00:01]} 27. Ne5 {[%emt 0:00:02]} Kf8 {[%emt 0:01:01]} 28. Nd7+ {[%emt 0:00:12]} Ke8 {[%emt 0:00:14]} 29. Nc5 {[%emt 0:00:09]} a5 {[%emt 0:00:54]} 30. Nb7 {[%emt 0:00:06]} Nc6 {[%emt 0:00:32]} 31. Nd6+ {[%emt 0:00:06]} Ke7 {[%emt 0:00:41]} 32. Nxb5 {[%emt 0:00:06]} Nb4 {[%emt 0:00:24]} 33. Nc3 {[%emt 0:00:23]} Kd6 {[%emt 0:00:34]} 34. Ke2 {[%emt 0:01:24]} Kc5 {[%emt 0:00:24]} 35. Kd2 {[%emt 0:00:32]} Nc6 {[%emt 0:00:17]} 36. a3 {[%emt 0:01:59]} Nd4 {[%emt 0:00:46]} 37. Na4+ {[%emt 0:00:03]} Kb5 {[%emt 0:00:10]} 38. Kc3 {[%emt 0:00:03]} Nf3 {[%emt 0:00:40]} 39. h4 {[%emt 0:00:28]} g5 {[%emt 0:00:28]} 40. hxg5 {[%emt 0:00:44]} hxg5 {[%emt 0:00:23]} 41. Kd3 {[%emt 0:30:47]} Ne1+ {[%emt 0:05:24]} 42. Kd2 {[%emt 0:00:00]} Nf3+ {[%emt 0:00:34]} 43. Kc3 {[%emt 0:00:00]} Ng1 {[%emt 0:05:57]} 44. Nb2 {[%emt 0:00:00]} Ne2+ {[%emt 0:12:39]} 45. Kd3 {[%emt 0:00:00]} Nc1+ {[%emt 0:01:19]} 46. Kc2 {[%emt 0:00:00]} Ne2 {[%emt 0:00:05]} 47. Nd3 {[%emt 0:00:00]} Nd4+ {[%emt 0:00:43]} 48. Kc3 {[%emt 0:00:00]} Ne2+ {[%emt 0:00:16]} 49. Kd2 {[%emt 0:00:00]} Nd4 {[%emt 0:00:06]} 50. a4+ {[%emt 0:00:00]} Kb6 {[%emt 0:01:16]} 51. Kc3 {[%emt 0:00:00]} Nf3 {[%emt 0:01:14]} 52. Nb2 {[%emt 0:00:00]} Ka6 {[%emt 0:00:16]} 53. Nc4 {[%emt 0:00:00]} f6 {[%emt 0:04:50]} 54. Kd3 {[%emt 0:00:00]} e5 {[%emt 0:01:37]} 55. Nd2 {[%emt 0:00:00]} Nd4 {[%emt 0:00:48]} 56. Kc4 {[%emt 0:00:00]} g4 {[%emt 0:01:10]} 57. Kd5 {[%emt 0:00:00]} Kb6 {[%emt 0:00:23]} 58. Kd6 {[%emt 0:00:00]} 1-0

[Event "ESP chT Honor Division 2019"]
[Site "Melilla"]
[Date "2019.10.03"]
[Round "4.5"]
[White "Ortega Hermida, Daniel"]
[Black "Suarez Uriel, Adrian"]
[Result "1-0"]
[ECO "B31"]
[WhiteElo "2341"]
[BlackElo "2392"]
[Annotator "NA RC"]
[PlyCount "99"]
[EventDate "2019.09.30"]
[EventType "team-tourn"]
[EventCountry "ESP"]
[SourceTitle "playchess.com"]
[Source "ChessBase"]
[SourceQuality "1"]
[TimeControl "40/5400+30:1800+30"]

1. e4 c5 {[%emt 0:00:00]} 2. Nf3 {[%emt 0:00:04]} Nc6 {[%emt 0:00:04]} 3. Bb5 {[%emt 0:00:26]} g6 {[%emt 0:00:06]} 4. O-O {[%emt 0:00:18]} Bg7 {[%emt 0:00:07]} 5. c3 {[%emt 0:00:55]} Nf6 {[%emt 0:00:06]} 6. d4 {[%emt 0:00:40]} cxd4 {[%emt 0:17:20]} 7. cxd4 {[%emt 0:00:05]} a6 {[%emt 0:02:47]} 8. Bxc6 {[%emt 0:06:26]} dxc6 {[%emt 0:00:11]} 9. Nc3 {[%emt 0:00:14]} O-O {[%emt 0:00:18]} 10. h3 {[%emt 0:00:13]} Qc7 {[%emt 0:06:45]} 11. Be3 {[%emt 0:04:35]} Rd8 {[%emt 0:06:07]} 12. Qc2 {[%emt 0:05:25]} h6 {[%emt 0:10:14]} 13. Na4 {[%emt 0:09:38]} Nd7 {[%emt 0:14:45]} 14. Rac1 {[%emt 0:10:20]} b5 {[%emt 0:07:48]} 15. Nc5 {[%emt 0:04:53]} Nb6 {[%emt 0:00:19]} 16. Ne5 {[%emt 0:12:43]} Bxe5 {[%emt 0:02:12]} 17. dxe5 {[%emt 0:00:08]} Qxe5 {[%emt 0:08:45]} 18. Rfd1 {[%emt 0:03:05]} Rxd1+ {[%emt 0:04:40]} 19. Rxd1 {[%emt 0:00:17]} Kh7 {[%emt 0:03:27]} 20. b3 {[%emt 0:05:31]} a5 {[%emt 0:04:52]} 21. Nd3 {[%emt 0:11:17]} Qc7 {[%emt 0:00:24]} 22. Qc5 {[%emt 0:00:49]} Ra6 {[%emt 0:01:58]} 23. Bf4 {[%emt 0:02:44]} Qd8 {[%emt 0:00:31]} 24. Qc1 {[%emt 0:01:37]} Qe8 {[%emt 0:00:44]} 25. Bxh6 {[%emt 0:01:25]} Nd7 {[%emt 0:01:30]} 26. Be3 {[%emt 0:00:48]} Bb7 {[%emt 0:00:57]} 27. Bc5 {[%emt 0:05:46]} Ra8 {[%emt 0:00:37]} 28. h4 {[%emt 0:01:43]} Nf6 {[%emt 0:01:23]} 29. f3 {[%emt 0:02:08]} a4 {[%emt 0:00:57]} 30. Ne5 {[%emt 0:01:42]} axb3 {[%emt 0:00:23]} 31. axb3 {[%emt 0:00:06]} Bc8 {[%emt 0:00:25]} 32. b4 {[%emt 0:03:20]} Be6 {[%emt 0:00:03]} 33. Rd2 {[%emt 0:01:52]} Qh8 {[%emt 0:00:41]} 34. Nxc6 {[%emt 0:02:12]} Nxe4 {[%emt 0:00:08]} 35. Bd4 {[%emt 0:00:34]} Nf6 {[%emt 0:01:07]} 36. Nxe7 {[%emt 0:00:16]} Kg7 {[%emt 0:00:34]} 37. g3 {[%emt 0:02:47]} Qb8 {[%emt 0:00:07]} 38. Kh2 {[%emt 0:00:28]} Qb7 {[%emt 0:00:08]} 39. Nc6 {[%emt 0:00:13]} Rc8 {[%emt 0:03:06]} 40. Bxf6+ {[%emt 0:00:13]} Kh7 {[%emt 0:00:13]} 41. Rd8 {[%emt 0:31:40]} Qb6 {[%emt 0:30:01]} 42. Qc5 {[%emt 0:00:00]} Qa6 {[%emt 0:00:00]} 43. Rxc8 {[%emt 0:00:00]} Qa2+ {[%emt 0:00:00]} 44. Kg1 {[%emt 0:00:00]} Bxc8 {[%emt 0:00:00]} 45. Nd4 {[%emt 0:00:00]} Qb1+ {[%emt 0:00:00]} 46. Kg2 {[%emt 0:00:00]} Bd7 {[%emt 0:00:00]} 47. Qe7 {[%emt 0:00:00]} Qa2+ {[%emt 0:00:00]} 48. Ne2 {[%emt 0:00:00]} Be6 {[%emt 0:00:00]} 49. Kf2 {[%emt 0:00:00]} Bc4 {[%emt 0:00:00]} 50. Qe8 {[%emt 0:00:00]} 1-0